[Event "7th Sharjah Challengers 2024"]
[Site "Sharjah"]
[Date "2024.05.18"]
[Round "5.1"]
[White "Lashkin, Jegor"]
[Black "Viani Antonio Dcunha"]
[Result "1-0"]
[ECO "D37"]
[WhiteElo "2449"]
[BlackElo "2394"]
[Annotator "TA"]
[PlyCount "69"]
[EventDate "2024.05.13"]
[EventType "swiss"]
[EventCountry "UAE"]
[SourceTitle "playchess.com"]
[Source "ChessBase"]
[SourceQuality "1"]
[TimeControl "5400+30"]

{[%evp 19,69,30,34,32,24,28,25,14,23,20,33,45,36,18,43,41,50,43,60,60,52,53,50,48,57,60,83,63,62,64,71,60,96,99,89,105,101,84,187,178,165,179,255,254,235,232,572,564,618,603,570,562]} 1. d4 {[%emt 0:00:03]} Nf6 {[%emt 0:00:27]} 2. c4 {[%emt 0:00:06]} e6 {[%emt 0:00:16]} 3. Nf3 {[%emt 0:00:05]} d5 {[%emt 0:00:21]} 4. Nc3 {[%emt 0:00:05]} Be7 {[%emt 0:00:17]} 5. Bf4 {[%emt 0:00:38]} O-O {[%emt 0:00:20]} 6. e3 {[%emt 0:00:05]} c5 {[%emt 0:00:27]} 7. dxc5 {[%emt 0:00:10]} Bxc5 {[%emt 0:00:11]} 8. Qc2 {[%emt 0:00:32]} Nc6 {[%emt 0:00:53]} 9. Rd1 {[%emt 0:00:39]} Qa5 {[%emt 0:04:30]} 10. a3 {[%emt 0:00:53]} Be7 {[%emt 0:00:11]} 11. Be2 {[%emt 0:03:39]} Ne4 {[%emt 0:01:50]} 12. cxd5 {[%emt 0:00:29]} Nxc3 {[%emt 0:00:19]} 13. bxc3 {[%emt 0:00:12] White has an edge.} exd5 {[%emt 0:00:13]} 14. O-O {[%emt 0:02:03]} h6 {[%emt 0:01:11]} 15. a4 {[%emt 0:01:27]} Rd8 {[%emt 0:01:36]} 16. Rb1 {[%emt 0:04:17] And now Rb5 would win.} Bf6 {[%emt 0:05:07]} 17. Nd4 {[%emt 0:03:34]} a6 {[%emt 0:06:28] Repels Rb5} 18. Rfc1 {[%emt 0:07:25]} Qc5 {[%emt 0:01:04]} 19. Qb2 {[%emt 0:13:23]} Re8 {[%emt 0:10:35][%cal Bd8e8,Be8e7,Be7d7][%mdl 32]} 20. Rd1 {[%emt 0:12:02]} Ne5 {[%emt 0:12:57]} 21. Qb4 {[%emt 0:04:40]} Qe7 {[%emt 0:12:34]} 22. h3 {[%emt 0:08:33]} Nc6 {[%emt 0:03:14]} 23. Nxc6 {[%emt 0:09:05]} bxc6 {[%emt 0:00:12]} 24. Qxe7 {[%emt 0:04:23]} Rxe7 {[%emt 0:01:41]} 25. Rb6 {[%emt 0:02:48]} Bxc3 {[%emt 0:19:06]} 26. Rxc6 {[%emt 0:02:03]} Bf6 {[%emt 0:01:41]} 27. a5 {[%emt 0:10:41] White has more active pieces.} (27. Rxd5 Bb7 28. Rxf6 Bxd5 $15) 27... Be6 {[%emt 0:06:18]} 28. Rb1 {[%emt 0:02:11]} ({Reject} 28. Bxa6 $6 Rea7 29. Be2 Rxa5 $11) (28. Rxa6 $6 Rxa6 29. Bxa6 Ra7 $11) 28... g5 {[%emt 0:02:53]} (28... Bf5 $16 {was worth a try.} 29. Rbb6 d4) 29. Bd6 $1 $36 {[%emt 0:01:53][%mdl 2048] Black is under strong pressure.} (29. Rxa6 $2 {perishes.} Rxa6 30. Bxa6 gxf4 $19) 29... Rd7 {[%emt 0:00:32]} 30. Bxa6 {[%emt 0:03:24]} Bd8 {[%emt 0:04:28]} (30... d4 $142) 31. Bb7 {[%emt 0:01:20]} Rxa5 {[%emt 0:01:06]} 32. Bc8 {[%emt 0:00:01]} Rda7 $2 {[%emt 0:01:35]} (32... d4 33. exd4 (33. Bxd7 Bxd7 34. Rc4 dxe3 $16) 33... Rd5) 33. Bxe6 {[%emt 0:00:18] White is clearly winning.} fxe6 {[%emt 0:01:00] [#]} 34. Rb8 $1 {[%emt 0:00:06]} Rd7 {[%emt 0:01:07] [#]} 35. Bc7 $1 {[%emt 0:00:21] Weighted Error Value: White=0.03 (flawless) /Black=0.29 (precise) .  Mistake:       	---       	Black=3      Inaccurate:     	---       	Black=1      OK:         	White=12    	Black=7      Best:        	White=2     	---        Strong:       	White=1     	---} 1-0

[Event "7th Sharjah Challengers 2024"]
[Site "Sharjah"]
[Date "2024.05.18"]
[Round "5.2"]
[White "Divya Deshmukh"]
[Black "Aradhya, Garg"]
[Result "1-0"]
[ECO "C55"]
[WhiteElo "2443"]
[BlackElo "2388"]
[Annotator "TA"]
[PlyCount "71"]
[EventDate "2024.05.13"]
[EventType "swiss"]
[EventCountry "UAE"]
[SourceTitle "playchess.com"]
[Source "ChessBase"]
[SourceQuality "1"]
[TimeControl "5400+30"]

{[%evp 18,71,0,10,16,7,5,21,18,40,35,0,0,0,0,0,0,0,0,0,24,0,82,64,54,59,108,93,103,88,106,61,116,118,95,122,111,116,124,120,172,207,222,212,226,221,353,356,356,356,29985,29986,29986,29987,29988,29989]} 1. e4 {[%emt 0:00:11]} e5 {[%emt 0:00:02]} 2. Nf3 {[%emt 0:00:06]} Nc6 {[%emt 0:00:04]} 3. Bb5 {[%emt 0:00:26]} a6 {[%emt 0:00:02]} 4. Ba4 {[%emt 0:00:06]} Nf6 {[%emt 0:00:10]} 5. O-O {[%emt 1:32:11]} Be7 {[%emt 0:00:04]} 6. d3 {[%emt 0:00:00]} b5 {[%emt 0:00:07]} 7. Bb3 {[%emt 0:00:00]} d6 {[%emt 0:00:05]} 8. c3 {[%emt 0:00:00]} O-O {[%emt 0:02:20]} 9. h3 {[%emt 0:00:00]} Na5 {[%emt 0:05:46]} 10. Bc2 {[%emt 0:00:00]} c5 {[%emt 0:00:02]} 11. d4 {[%emt 0:00:00]} d5 {[%emt 0:00:20]} 12. Nxe5 {[%emt 0:00:00]} dxe4 {[%emt 0:08:08] The position is equal.} 13. dxc5 {[%emt 0:00:00]} Bxc5 {[%emt 0:02:08]} 14. Qxd8 {[%emt 0:00:00]} Rxd8 {[%emt 0:02:51]} 15. b4 {[%emt 0:00:00]} Bd6 {[%emt 0:01:05]} 16. Ng4 {[%emt 0:00:00]} Nxg4 {[%emt 0:04:53]} 17. hxg4 {[%emt 0:00:00]} Nc4 {[%emt 0:00:13]} 18. Bxe4 {[%emt 0:00:00]} Ra7 {[%emt 0:00:05]} 19. Nd2 $36 {[%emt 0:00:00][%mdl 2048] White has some pressure.} Bxg4 {[%emt 0:04:32]} (19... Rc7 $11) 20. Nxc4 $16 {[%emt 0:00:00]} bxc4 {[%emt 0:00:02]} 21. Bg5 {[%emt 0:00:00] Against Re7} Re8 {[%emt 0:09:33] Black is now going downhill.} (21... Rb8 $14) 22. f3 $1 {[%emt 0:00:00]} h6 {[%emt 0:01:38]} 23. Be3 {[%emt 0:00:00]} Rae7 {[%emt 0:00:11]} 24. Bd4 {[%emt 0:00:00][%cal Oa2a4]} Bh5 {[%emt 0:04:20]} ({Black should try} 24... Bc8 $14) 25. a4 {[%emt 0:00:00]} Bg6 {[%emt 0:01:32]} 26. Bc6 {[%emt 0:00:00]} Rc8 {[%emt 0:06:29]} 27. b5 {[%emt 0:00:00]} Bg3 {[%emt 0:04:41] Against Rfe1} 28. Bf2 {[%emt 0:00:00]} Be5 {[%emt 0:01:04]} (28... Bxf2+ $16 {was called for.} 29. Kxf2 (29. Rxf2 Bd3 $16) 29... Rec7) 29. Rae1 $18 {[%emt 0:00:00]} Bd3 {[%emt 0:04:06] [#]} 30. f4 $1 {[%emt 0:00:00][%cal Bf3f4,Bf4e5,Be5e6][%mdl 32]} axb5 {[%emt 0:02:11]} ({Avoid the trap} 30... Bxf1 $2 31. Rxe5 Rxe5 32. fxe5 axb5 33. axb5 $18) 31. axb5 {[%emt 0:00:00][%cal Ba4b5,Bb5c6,Bc6c7][%mdl 32]} Bxf1 {[%emt 0:00:51]} (31... Bd6 $142) 32. Rxe5 {[%emt 0:00:00]} Rxe5 {[%emt 0:00:06]} 33. fxe5 {[%emt 0:00:00]} Rxc6 $2 {[%emt 0:00:48]} (33... Bd3 $18 34. b6 Rxc6) 34. bxc6 {[%emt 0:00:00] KB-KB. White mates.} Bd3 {[%emt 0:00:16] [#]} 35. e6 $1 {[%emt 0:00:00][%mdl 512]} Be4 {[%emt 0:00:53]} (35... fxe6 36. c7) 36. c7 {[%emt 0:00:00] Weighted Error Value: White=0.05 (flawless) /Black=0.45.  Mistake:       	---       	Black=6      Inaccurate:     	White=2     	---        OK:         	White=10    	Black=11     Best:        	White=2     	---        Strong:       	White=2     	---} 1-0

[Event "7th Sharjah Challengers 2024"]
[Site "Sharjah"]
[Date "2024.05.18"]
[Round "5.3"]
[White "Kanyamarala, Tarun"]
[Black "Garifullina, Leya"]
[Result "0-1"]
[ECO "D38"]
[WhiteElo "2302"]
[BlackElo "2431"]
[Annotator "TA"]
[PlyCount "108"]
[EventDate "2024.05.13"]
[EventType "swiss"]
[EventCountry "UAE"]
[SourceTitle "playchess.com"]
[Source "ChessBase"]
[SourceQuality "1"]
[TimeControl "5400+30"]

{[%evp 11,108,17,16,14,26,16,18,13,6,10,11,4,6,18,21,7,0,-18,-33,-20,-46,-78,-87,-145,-71,-118,-110,-324,-322,-355,-356,-337,-168,-165,-160,-161,-162,-162,-162,-189,-196,-177,-179,-206,-208,-217,-159,-157,-157,-241,-183,-204,-191,-242,-225,-296,-283,-301,-298,-264,-250,-2810,-1199,-6719,-6629,-29947,-29947,-29948,-12483,-11110,-3970,-29962,-29966,-29965,-29960,-29961,-29961,-1739,-879,-29982,-29982,-29983,-29984,-29984,-29985,-29985,-29986,-29986,-29987,-29988,-29989,-29989,-29990,-29990,-29991,-29991,-29992,-29992,-5097]} 1. d4 {[%emt 0:00:04]} Nf6 {[%emt 0:00:22]} 2. c4 {[%emt 0:00:15]} e6 {[%emt 0:00:05]} 3. Nf3 {[%emt 0:00:06]} d5 {[%emt 0:00:06]} 4. Nc3 {[%emt 0:00:11]} Bb4 {[%emt 0:00:18]} 5. Qa4+ {[%emt 0:00:12]} Nc6 {[%emt 0:00:07][%cal Bb8c6,Bc6e5,Be5f3][%mdl 32]} 6. e3 {[%emt 0:00:12]} O-O {[%emt 0:00:08]} 7. Qc2 {[%emt 0:00:12]} Re8 {[%emt 0:00:24]} 8. Bd2 {[%emt 0:00:28]} Bf8 {[%emt 0:00:14]} 9. a3 {[%emt 0:00:37] The position is equal.} e5 {[%emt 0:02:33]} 10. dxe5 {[%emt 0:00:30]} Nxe5 {[%emt 0:00:07]} 11. cxd5 {[%emt 0:00:22]} Nxf3+ {[%emt 0:02:25]} 12. gxf3 {[%emt 0:00:16]} Nxd5 {[%emt 0:00:04]} 13. h4 {[%emt 0:00:26]} a5 {[%emt 0:06:47]} 14. O-O-O {[%emt 0:06:26] [#] Threatens to win with Be1.} Nb4 $1 {[%emt 0:06:42]} 15. axb4 {[%emt 0:09:19]} axb4 {[%emt 0:00:05]} 16. Nb1 {[%emt 0:00:48][%cal Od2b4] Strongly threatening Bxb4!} Qf6 $1 {[%emt 0:01:30][%mdl 1024] Black has strong compensation.} 17. f4 {[%emt 0:26:10] Dodges Re5} (17. Qxc7 $2 Bf5 18. Bc3 bxc3 19. Qxc3 Rec8 $19) (17. e4 $142) 17... Bg4 {[%emt 0:09:06]} (17... Ra5 $142 {White must now prevent ...Rc5.} 18. Bd3 (18. Qxc7 $2 Rc5+ $19) 18... Bf5 19. Bxf5 (19. Qxc7 $2 Rc5+ $19) 19... Rxf5 20. Bxb4 (20. Qxc7 $2 Rc5+ $19) 20... Bxb4) 18. Bc4 {[%emt 0:09:48]} Ra5 {[%emt 0:05:12][%cal Of6c6] ...Qc6! is the strong threat. Black is more active.} 19. Rde1 $2 {[%emt 0:08:08] Now White is beyond hope.} (19. e4 $17 {was worth a try.}) 19... Qc6 $1 $19 {[%emt 0:07:02]} 20. e4 {[%emt 0:10:51] Prevents Bf5} Rc5 {[%emt 0:02:47]} 21. b3 {[%emt 0:00:44][%cal Od2e3]} Bf3 {[%emt 0:01:26]} (21... b5 $142 22. Bxb4 bxc4 (22... Rxc4 $2 23. bxc4 Bxb4 24. cxb5 $17) 23. Bxc5 cxb3 (23... Bxc5 24. Qxc4 Be6 25. Qc3 $15) (23... Qxc5 24. Re3 $17) 24. Qxb3 Bxc5 (24... Qxc5+ 25. Qc2 $11)) 22. Bxb4 {[%emt 0:05:29] [#]} Rxc4 {[%emt 0:00:50]} (22... Bxe4 23. Rxe4 Rxe4 24. Bxc5 Rxc4 25. Qxc4 $14) 23. Qxc4 {[%emt 0:00:08]} Qxc4+ {[%emt 0:00:04]} (23... Bxb4 24. Qxc6 bxc6 25. e5 Bxh1 (25... Bxe1 26. Rxe1 Rb8 27. Nd2 $15) 26. Rxh1 $17) 24. bxc4 {[%emt 0:00:05] aiming for Bxf8.} Bxb4 {[%emt 0:00:02]} 25. e5 {[%emt 0:08:53]} Bxh1 {[%emt 0:01:16]} (25... Bxe1 26. Rxe1 Rd8 27. Nd2 $17) 26. Rxh1 {[%emt 0:00:05][%mdl 4096] Endgame. [#] KRB-KRN} f6 $1 {[%emt 0:00:05]} 27. Rh3 {[%emt 0:01:33]} fxe5 {[%emt 0:04:45]} 28. Rb3 {[%emt 0:01:35]} Bc5 {[%emt 0:01:23]} 29. Rxb7 {[%emt 0:02:04]} Bxf2 {[%emt 0:00:14]} (29... exf4 30. f3 $15) 30. fxe5 {[%emt 0:00:16]} (30. f5 $17) 30... c5 {[%emt 0:00:55]} (30... Rxe5 31. Rxc7 Bxh4 32. Nd2) 31. Nd2 {[%emt 0:02:50]} Rxe5 {[%emt 0:01:10]} 32. Nf3 {[%emt 0:00:56]} (32. Kc2 {is a better defense.}) 32... Rf5 {[%emt 0:01:54]} 33. Rb8+ {[%emt 0:00:17]} Kf7 {[%emt 0:00:29]} 34. Ng5+ {[%emt 0:00:16]} Kg6 {[%emt 0:00:14]} 35. Rb6+ {[%emt 0:00:37]} Rf6 {[%emt 0:00:39]} 36. Rxf6+ {[%emt 0:00:26]} (36. Ne6) 36... gxf6 {[%emt 0:00:03] KB-KN} 37. Ne4 {[%emt 0:00:49]} Bd4 {[%emt 0:00:30]} ({Weaker is} 37... Bxh4 38. Kd2 $17) 38. Kd2 {[%emt 0:00:32]} Kf5 {[%emt 0:01:11]} (38... Kh5 $2 39. Ke2 $19) 39. Nd6+ {[%emt 0:00:42]} Kg4 {[%emt 0:00:17][%cal Oh7h5]} 40. Ke2 {[%emt 0:01:10]} f5 {[%emt 0:00:36][%cal Of5f4] ( -> ...f4!)} 41. h5 {[%emt 0:01:13]} f4 {[%emt 0:00:06]} (41... Kxh5 42. Nxf5 Be5 43. Kf3 $11) 42. h6 {[%emt 0:00:13]} f3+ {[%emt 0:00:15]} 43. Kf1 {[%emt 0:00:15]} Be3 {[%emt 0:00:44]} 44. Ne4 {[%emt 0:04:30]} Kf5 {[%emt 0:00:32]} ({Worse is} 44... Bxh6 45. Nxc5 Be3 46. Nd3 $11) 45. Nf2 {[%emt 0:01:16]} Bxf2 {[%emt 0:00:43] Black mates.} 46. Kxf2 {[%emt 0:00:01] K3P-KPP} Ke4 {[%emt 0:01:01]} 47. Kf1 {[%emt 0:00:05]} Kd4 {[%emt 0:00:31]} 48. Kf2 {[%emt 0:00:01]} Kxc4 {[%emt 0:00:05]} 49. Kxf3 {[%emt 0:00:08] KPP-KP} Kd3 {[%emt 0:00:18]} 50. Kf4 {[%emt 0:00:11]} c4 {[%emt 0:00:02]} 51. Kf5 {[%emt 0:00:05]} c3 {[%emt 0:00:02]} 52. Kf6 {[%emt 0:00:03]} c2 {[%emt 0:00:01]} 53. Kg7 {[%emt 0:00:06]} c1=Q {[%emt 0:48:33]} ({Not} 53... c1=B 54. Kxh7 Bg5 55. Kg8 $11) 54. Kxh7 {[%emt 0:00:05]} Qg5 {[%emt 0:00:00] Weighted Error Value: White=0.80/Black=0.10 (very precise) .  Loses game:     	White=1     	---        Mistake:       	White=5     	Black=2      Inaccurate:     	White=3     	Black=1      OK:         	White=7     	Black=12     Best:        	White=2     	Black=2      Strong:       	---       	Black=2} 0-1

[Event "7th Sharjah Challengers 2024"]
[Site "Sharjah"]
[Date "2024.05.18"]
[Round "5.4"]
[White "Sammed Jaykumar, Shete"]
[Black "Delgado Ramirez, Neuris"]
[Result "0-1"]
[ECO "C62"]
[WhiteElo "2383"]
[BlackElo "2489"]
[Annotator "TA"]
[PlyCount "62"]
[EventDate "2024.05.13"]
[EventType "swiss"]
[EventCountry "UAE"]
[SourceTitle "playchess.com"]
[Source "ChessBase"]
[SourceQuality "1"]
[TimeControl "5400+30"]

{[%evp 9,62,26,30,11,16,-40,43,25,58,0,0,-1045,11,0,39,27,22,31,21,0,0,0,0,-26,-38,-31,0,-18,-11,-18,-10,-25,-22,-148,-125,-122,-36,-279,-308,-416,-417,-545,-570,-553,-404,-383,-390,-968,-907,-1125,-1134,-1120,-1066,-1291,-1286]} 1. e4 {[%emt 0:00:05]} e5 {[%emt 0:00:06]} 2. Nf3 {[%emt 0:00:15]} Nc6 {[%emt 0:00:09]} 3. Bb5 {[%emt 0:00:58]} d6 {[%emt 0:02:01]} 4. h3 {[%emt 0:03:44]} a6 {[%emt 0:03:46]} 5. Bxc6+ {[%emt 0:00:58]} bxc6 {[%emt 0:00:09]} 6. d4 {[%emt 0:00:06]} exd4 {[%emt 0:05:52]} 7. Qd2 {[%emt 1:27:54] [#]} (7. O-O $11) 7... d3 8. Qxd3 {[%emt 0:00:00] White is slightly better.} Ne7 {[%emt 0:02:17]} 9. Qd4 {[%emt 0:00:00]} ({White should play} 9. O-O $14) 9... c5 $11 {[%emt 0:01:59]} 10. O-O $2 {[%emt 0:00:00][%mdl 8192]} Ng6 $2 {[%emt 0:02:58]} (10... cxd4 $19 11. Nxd4 g6) 11. Qd3 {[%emt 0:00:00]} f6 {[%emt 0:01:00][%cal Bf7f6,Bf6f5][%mdl 32]} 12. Be3 {[%emt 0:00:00]} Rb8 {[%emt 0:00:09]} 13. b3 {[%emt 0:00:00]} Be7 {[%emt 0:00:10]} 14. Nfd2 {[%emt 0:00:00]} O-O {[%emt 0:05:42]} 15. f4 {[%emt 0:00:00]} f5 {[%emt 0:01:34]} 16. c4 {[%emt 0:00:00]} Bf6 {[%emt 0:02:18]} 17. Nc3 {[%emt 0:00:00]} Re8 {[%emt 0:00:45]} 18. Rae1 {[%emt 0:00:00]} Bxc3 {[%emt 0:02:10]} 19. Qxc3 {[%emt 0:00:00]} Bb7 {[%emt 0:00:05]} 20. exf5 {[%emt 0:00:00]} Nh4 {[%emt 0:01:10][%csl LRf5,LRg2]} 21. g4 {[%emt 0:00:00]} (21. Rf2 $11) 21... Ng2 $17 {[%emt 0:01:09] Black is more active.} 22. Re2 {[%emt 0:00:00] [#]} Qe7 {[%emt 0:00:04]} ({Better is} 22... Qh4 $1 $17 {[%cal Rh4h3]} 23. Kh2 (23. Rxg2 $2 Qxh3 $19) 23... Qe7) 23. Qd3 $2 {[%emt 0:00:00] [#] This move loses the game for White.} Qxe3+ $1 $19 {[%emt 0:07:26]} (23... Nxe3 24. Rfe1 $11) 24. Rxe3 {[%emt 0:00:00]} Rxe3 {[%emt 0:00:19]} 25. Qb1 {[%emt 0:00:00][%cal Of5f6]} Rbe8 {[%emt 0:06:53][%cal Og2e1]} 26. f6 {[%emt 0:00:00][%cal Of6f7]} gxf6 {[%emt 0:01:42]} 27. Nf3 {[%emt 0:10:00] Dodges Ne1} Bxf3 {[%emt 0:06:21]} 28. Qf5 {[%emt 0:00:00]} (28. Rxf3 Re1+ (28... Rxf3 29. Kxg2 Rxf4 30. b4 $17) 29. Qxe1 Nxe1 30. Rc3) 28... Be4 {[%emt 0:00:45] Black is clearly winning.} 29. Qxf6 {[%emt 0:00:00]} Rxh3 {[%emt 0:00:24]} 30. f5 {[%emt 0:00:00]} Ne3 {[%emt 0:03:39][%csl LRf1,LRg4] And now ...Rh1+ would win.} 31. Rf4 {[%emt 0:00:00]} Bc6 {[%emt 0:03:20] Weighted Error Value: White=1.01/Black=0.41.  Loses game:     	White=2     	---        Missed win:     	---       	Black=1      Mistake:       	White=4     	Black=2      Inaccurate:     	White=3     	Black=2      OK:         	White=3     	Black=9      Best:        	White=1     	Black=3      Strong:       	---       	Black=1} 0-1

[Event "7th Sharjah Challengers 2024"]
[Site "Sharjah"]
[Date "2024.05.18"]
[Round "5.5"]
[White "Burmakin, Vladimir"]
[Black "Liyanage, Ranindu Dilshan"]
[Result "1/2-1/2"]
[ECO "A13"]
[WhiteElo "2483"]
[BlackElo "2362"]
[Annotator "RC"]
[PlyCount "123"]
[EventDate "2024.05.13"]
[EventType "swiss"]
[EventCountry "UAE"]
[SourceTitle "playchess.com"]
[Source "ChessBase"]
[SourceQuality "1"]
[TimeControl "5400+30"]

1. c4 {[%emt 0:00:03]} e6 {[%emt 0:00:14]} 2. Nf3 {[%emt 0:01:31]} d5 {[%emt 0:00:12]} 3. g3 {[%emt 0:00:09]} Nf6 {[%emt 0:00:13]} 4. Bg2 {[%emt 0:00:07]} dxc4 {[%emt 0:00:24]} 5. Qa4+ {[%emt 0:00:37]} Nbd7 {[%emt 0:00:12]} 6. Qxc4 {[%emt 0:00:37]} a6 {[%emt 0:00:13]} 7. Qc2 {[%emt 0:00:15]} c5 {[%emt 0:00:10]} 8. a4 {[%emt 0:00:54]} b6 {[%emt 0:00:47]} 9. Nc3 {[%emt 0:02:33]} Bb7 {[%emt 0:00:32]} 10. O-O {[%emt 0:00:08]} Rc8 {[%emt 0:03:15]} 11. d3 {[%emt 0:01:13]} Bd6 {[%emt 0:01:30]} 12. Rd1 {[%emt 0:01:03]} O-O {[%emt 0:01:32]} 13. Bd2 {[%emt 0:07:40]} Qc7 {[%emt 0:07:21]} 14. Rac1 {[%emt 0:08:13]} Rfd8 {[%emt 0:03:56]} 15. Qb1 {[%emt 0:01:25]} Qb8 {[%emt 0:04:05]} 16. b3 {[%emt 0:12:39]} h6 {[%emt 0:12:09]} 17. Be1 {[%emt 0:09:14]} Ne5 {[%emt 0:13:09]} 18. Nxe5 {[%emt 0:01:28]} Bxe5 {[%emt 0:00:13]} 19. Bxb7 {[%emt 0:00:16]} Qxb7 {[%emt 0:00:05]} 20. b4 {[%emt 0:02:08]} cxb4 {[%emt 0:05:17]} 21. Qxb4 {[%emt 0:00:08]} Bd4 {[%emt 0:02:39]} 22. Nb1 {[%emt 0:11:07]} e5 {[%emt 0:04:47]} 23. Qb3 {[%emt 0:01:07]} Nd5 {[%emt 0:09:03]} 24. Rc4 {[%emt 0:06:50]} Rc6 {[%emt 0:07:15]} 25. Rdc1 {[%emt 0:09:30]} Rxc4 {[%emt 0:02:06]} 26. dxc4 {[%emt 0:09:27]} Nf6 {[%emt 0:00:59]} 27. a5 {[%emt 0:00:38]} Rb8 {[%emt 0:04:13]} 28. e3 {[%emt 0:00:20]} Bc5 {[%emt 0:00:52]} 29. axb6 {[%emt 0:00:09]} Qd7 {[%emt 0:06:54]} 30. Qd1 {[%emt 0:01:41]} Qh3 {[%emt 0:01:52]} 31. Qf3 {[%emt 0:00:07]} e4 {[%emt 0:01:16]} 32. Qg2 {[%emt 0:01:03]} Qe6 {[%emt 0:00:09]} 33. Bc3 {[%emt 0:00:42]} Nd7 {[%emt 0:02:49]} 34. Nd2 {[%emt 0:00:27]} f5 {[%emt 0:00:08]} 35. g4 {[%emt 0:00:30]} fxg4 {[%emt 0:02:16]} 36. Qxe4 {[%emt 0:00:32]} Qxe4 {[%emt 0:02:44]} 37. Nxe4 {[%emt 0:00:02]} Bxb6 {[%emt 0:00:06]} 38. Bd4 {[%emt 0:03:36]} Bc7 {[%emt 0:00:24]} 39. Kg2 {[%emt 0:02:09]} Kf7 {[%emt 0:02:04]} 40. Nc3 {[%emt 0:00:25]} Be5 {[%emt 0:00:50]} 41. c5 {[%emt 0:01:10]} Rc8 {[%emt 0:00:23]} 42. Ra1 {[%emt 0:01:49]} Bf6 {[%emt 0:01:03]} 43. Rxa6 {[%emt 0:03:39]} Nxc5 {[%emt 0:00:12]} 44. Ra7+ {[%emt 0:00:04]} Ke6 {[%emt 0:00:56]} 45. Bxf6 {[%emt 0:00:59]} gxf6 {[%emt 0:00:22]} 46. Ne2 {[%emt 0:00:46]} Kf5 {[%emt 0:00:48]} 47. Rg7 {[%emt 0:01:35]} h5 {[%emt 0:00:34]} 48. Ng3+ {[%emt 0:00:04]} Ke6 {[%emt 0:00:04]} 49. Nxh5 {[%emt 0:00:15]} f5 {[%emt 0:00:24]} 50. Rg6+ {[%emt 0:00:32]} Ke5 {[%emt 0:00:21]} 51. Nf4 {[%emt 0:00:14]} Rc7 {[%emt 0:01:01]} 52. Rb6 {[%emt 0:00:02]} Ke4 {[%emt 0:00:46]} 53. Rd6 {[%emt 0:02:26]} Ke5 {[%emt 0:00:16]} 54. Rh6 {[%emt 0:00:15]} Ke4 {[%emt 0:00:17]} 55. Rg6 {[%emt 0:00:38]} Rc8 {[%emt 0:00:21]} 56. Rb6 {[%emt 0:00:33]} Rc7 {[%emt 0:00:11]} 57. Rb4+ {[%emt 0:00:38]} Ke5 {[%emt 0:00:05]} 58. Rc4 {[%emt 0:00:12]} Kd6 {[%emt 0:00:07]} 59. Rd4+ {[%emt 0:00:11]} Ke5 {[%emt 0:00:24]} 60. Rd5+ {[%emt 0:00:39]} Kf6 {[%emt 0:00:06]} 61. Rd6+ {[%emt 0:00:09]} Ke5 {[%emt 0:01:07]} 62. Rb6 {[%emt 0:00:22]} 1/2-1/2

[Event "7th Sharjah Challengers 2024"]
[Site "Sharjah"]
[Date "2024.05.18"]
[Round "5.6"]
[White "Romany, Joy"]
[Black "Ahmad, Al Khatib"]
[Result "0-1"]
[ECO "A64"]
[WhiteElo "1975"]
[BlackElo "2380"]
[Annotator "TA"]
[PlyCount "50"]
[EventDate "2024.05.13"]
[EventType "swiss"]
[EventCountry "UAE"]
[SourceTitle "playchess.com"]
[Source "ChessBase"]
[SourceQuality "1"]
[TimeControl "5400+30"]

{[%evp 25,50,-2,0,0,24,-8,2,-122,-106,-93,-106,-289,-239,-308,-214,-237,-227,-439,-458,-1014,-984,-1004,-1024,-29989,-29990,-29990,-29991]} 1. d4 {[%emt 0:00:31]} Nf6 {[%emt 0:00:07]} 2. c4 {[%emt 0:00:05]} e6 {[%emt 0:00:06]} 3. g3 {[%emt 0:00:47]} c5 {[%emt 0:00:15]} 4. d5 {[%emt 0:00:39]} exd5 {[%emt 0:00:06]} 5. cxd5 {[%emt 0:00:02]} d6 {[%emt 0:00:08]} 6. Nc3 {[%emt 0:00:38]} g6 {[%emt 0:00:17]} 7. Bg2 {[%emt 0:00:04]} Bg7 {[%emt 0:00:06]} 8. Nf3 {[%emt 0:00:04]} O-O {[%emt 0:00:10][%cal Bh8f8,Bf8e8,Be8e5][%mdl 32]} 9. O-O {[%emt 1:32:10]} a6 {[%emt 0:00:26]} 10. a4 {[%emt 0:00:00]} Re8 {[%emt 0:00:22]} 11. Nd2 {[%emt 0:00:00]} Nbd7 {[%emt 0:00:20]} 12. Nc4 {[%emt 0:00:00]} Ne5 {[%emt 0:00:49]} 13. Nxe5 {[%emt 0:00:00]} Rxe5 {[%emt 0:00:12]} 14. Qc2 {[%emt 0:00:00]} Rh5 {[%emt 0:07:38]} 15. h4 {[%emt 0:00:00]} Ng4 {[%emt 0:16:31]} 16. Bg5 {[%emt 0:00:00]} (16. e4 $11) 16... Rxg5 $1 $17 {[%emt 0:27:13]} 17. hxg5 {[%emt 0:00:00]} Qxg5 {[%emt 0:00:07] [#] Hoping for ...Qh6.} 18. e3 $2 {[%emt 0:00:00]} (18. Bf3 $17 {was the only defense.}) 18... Qh5 $19 {[%emt 0:03:36][%csl Gg4][%cal Rh5h2]} 19. Rfe1 {[%emt 0:00:00]} Qh2+ {[%emt 0:05:46]} 20. Kf1 {[%emt 0:00:00]} Ne5 {[%emt 0:00:36][%mdl 1024] ...Bf5 is the strong threat. Black has strong compensation.} 21. Qe4 {[%emt 0:00:00]} (21. Ne4) 21... Bg4 {[%emt 0:02:34] [#] aiming for ...f5.} 22. Rec1 {[%emt 0:06:30]} (22. f4 $142 Bf5 23. fxe5 Bxe4 24. Nxe4) 22... f5 {[%emt 0:03:44]} 23. Qc2 {[%emt 0:00:00]} Nf3 {[%emt 0:01:14] ( -> ...Qg1+)} 24. Bxf3 {[%emt 0:00:00]} Bxf3 {[%emt 0:00:12][%cal Rh2h1]} 25. Ke1 {[%emt 0:00:00]} Bxc3+ {[%emt 0:01:32] White got outplayed after the opening.   Weighted Error Value: White=1.61/Black=0.14 (very precise) .  Loses game:     	White=1     	---        Mistake:       	White=3     	---        Inaccurate:     	White=1     	---        OK:         	---       	Black=2      Best:        	---       	Black=2      Strong:       	---       	Black=1} 0-1